[Event "Late-Titled-Tuesday-Blitz-March-26-2024"]
[Site "Chess.com"]
[Date "2024.03.26"]
[Round "3"]
[White "snowlord"]
[Black "GodzillaChessYoutube"]
[Result "1-0"]
[WhiteElo "2923"]
[BlackElo "2708"]
[TimeControl "180+1"]
[EndTime "14:29:23 PDT"]
[Termination "snowlord won on time"]

1. Nf3 {[%clk 0:03:00.9]} 1... d5 {[%clk 0:02:55.1]} 2. g3 {[%clk 0:03:01.1]}
2... Bf5 {[%clk 0:02:55.4]} 3. c4 {[%clk 0:03:00.4]} 3... dxc4 {[%clk
0:02:34.3]} 4. Na3 {[%clk 0:02:58]} 4... Qd5 {[%clk 0:02:26.7]} 5. Qa4+ {[%clk
0:02:32.6]} 5... c6 {[%clk 0:02:25.6]} 6. Qxc4 {[%clk 0:02:24.9]} 6... e6 {[%clk
0:02:25.3]} 7. Qb3 {[%clk 0:02:19.3]} 7... Qxb3 {[%clk 0:02:17]} 8. axb3 {[%clk
0:02:20.2]} 8... Nd7 {[%clk 0:02:13.5]} 9. d3 {[%clk 0:02:13]} 9... Nc5 {[%clk
0:02:09.7]} 10. Nd4 {[%clk 0:01:56.7]} 10... Bg6 {[%clk 0:02:01.5]} 11. b4
{[%clk 0:01:54.7]} 11... Nd7 {[%clk 0:01:50.6]} 12. b5 {[%clk 0:01:50.9]} 12...
c5 {[%clk 0:01:50.5]} 13. Nb3 {[%clk 0:01:50.4]} 13... Ngf6 {[%clk 0:01:31.3]}
14. Bg2 {[%clk 0:01:48.5]} 14... Nd5 {[%clk 0:01:28.1]} 15. Nc4 {[%clk
0:01:46.7]} 15... Be7 {[%clk 0:01:13.6]} 16. h4 {[%clk 0:01:36.4]} 16... h5
{[%clk 0:01:07.8]} 17. Nba5 {[%clk 0:01:29.9]} 17... O-O-O {[%clk 0:01:03.6]}
18. Bf4 {[%clk 0:01:22.1]} 18... N7b6 {[%clk 0:00:56.2]} 19. O-O {[%clk
0:00:35.7]} 19... Nxf4 {[%clk 0:00:30.4]} 20. Bxb7+ {[%clk 0:00:33.9]} 20... Kc7
{[%clk 0:00:30.9]} 21. gxf4 {[%clk 0:00:34.4]} 21... Nxc4 {[%clk 0:00:31]} 22.
dxc4 {[%clk 0:00:34.5]} 22... Bxh4 {[%clk 0:00:29.7]} 23. Bf3 {[%clk 0:00:32.2]}
23... Rd4 {[%clk 0:00:19.9]} 24. Nb3 {[%clk 0:00:29.1]} 24... Rxc4 {[%clk
0:00:18.3]} 25. Rxa7+ {[%clk 0:00:28.9]} 25... Kd6 {[%clk 0:00:08.3]} 26. Rd1+
{[%clk 0:00:28.6]} 26... Rd4 {[%clk 0:00:08.1]} 27. Ra6+ {[%clk 0:00:29]} 27...
Ke7 {[%clk 0:00:07.8]} 28. Nxd4 {[%clk 0:00:29.9]} 28... cxd4 {[%clk 0:00:07.6]}
29. Rxd4 {[%clk 0:00:30.8]} 29... Rb8 {[%clk 0:00:04.5]} 30. b6 {[%clk
0:00:30.1]} 30... Bf6 {[%clk 0:00:04]} 31. Rb4 {[%clk 0:00:30]} 1-0

[Event "Late-Titled-Tuesday-Blitz-March-26-2024"]
[Site "Chess.com"]
[Date "2024.03.26"]
[Round "3"]
[White "prochn"]
[Black "Kosak12"]
[Result "1-0"]
[WhiteElo "2514"]
[BlackElo "2768"]
[TimeControl "180+1"]
[EndTime "14:29:23 PDT"]
[Termination "prochn won by checkmate"]

1. d4 {[%clk 0:03:00.9]} 1... Nf6 {[%clk 0:02:59.9]} 2. c4 {[%clk 0:03:00.1]}
2... c5 {[%clk 0:02:59.1]} 3. d5 {[%clk 0:03:00]} 3... g6 {[%clk 0:02:59.2]} 4.
g3 {[%clk 0:02:59.7]} 4... Bg7 {[%clk 0:02:59.5]} 5. Bg2 {[%clk 0:02:59.9]} 5...
O-O {[%clk 0:03:00.1]} 6. Nc3 {[%clk 0:02:59.1]} 6... d6 {[%clk 0:03:00.5]} 7.
Nf3 {[%clk 0:02:59]} 7... e6 {[%clk 0:03:00.9]} 8. O-O {[%clk 0:02:58.8]} 8...
exd5 {[%clk 0:03:01.3]} 9. cxd5 {[%clk 0:02:59.3]} 9... Re8 {[%clk 0:03:01.6]}
10. Bf4 {[%clk 0:02:58.3]} 10... Ne4 {[%clk 0:03:00]} 11. Nxe4 {[%clk
0:02:57.4]} 11... Rxe4 {[%clk 0:03:00.9]} 12. Nd2 {[%clk 0:02:57.2]} 12... Rxf4
{[%clk 0:03:01.1]} 13. gxf4 {[%clk 0:02:57.5]} 13... Bxb2 {[%clk 0:03:01.8]} 14.
Rb1 {[%clk 0:02:57.9]} 14... Bg7 {[%clk 0:03:02.5]} 15. e4 {[%clk 0:02:53.5]}
15... Na6 {[%clk 0:02:56.4]} 16. Nc4 {[%clk 0:02:35.9]} 16... Rb8 {[%clk
0:02:42.1]} 17. a4 {[%clk 0:02:33.1]} 17... Nb4 {[%clk 0:02:41.8]} 18. e5 {[%clk
0:02:24.4]} 18... dxe5 {[%clk 0:02:36.4]} 19. fxe5 {[%clk 0:02:24.6]} 19... Bf5
{[%clk 0:02:35.8]} 20. f4 {[%clk 0:02:24.5]} 20... Qh4 {[%clk 0:01:59.5]} 21.
Rb3 {[%clk 0:02:07.5]} 21... Bc2 {[%clk 0:01:32]} 22. Qf3 {[%clk 0:02:06.3]}
22... Bxb3 {[%clk 0:01:15]} 23. Qxb3 {[%clk 0:02:07.2]} 23... g5 {[%clk
0:01:15]} 24. Qg3 {[%clk 0:01:36.1]} 24... Qxg3 {[%clk 0:00:56.8]} 25. hxg3
{[%clk 0:01:37]} 25... gxf4 {[%clk 0:00:56.2]} 26. gxf4 {[%clk 0:01:37.4]} 26...
b6 {[%clk 0:00:52.4]} 27. d6 {[%clk 0:01:33.8]} 27... a6 {[%clk 0:00:50.9]} 28.
d7 {[%clk 0:01:25.8]} 28... Kf8 {[%clk 0:00:42.2]} 29. Nxb6 {[%clk 0:01:18.7]}
29... Ke7 {[%clk 0:00:36.8]} 30. Rd1 {[%clk 0:01:15.9]} 30... Kd8 {[%clk
0:00:35.6]} 31. Nc4 {[%clk 0:00:49.3]} 31... Nc2 {[%clk 0:00:24.4]} 32. Rd5
{[%clk 0:00:41.3]} 32... Rb7 {[%clk 0:00:16.4]} 33. Nd6 {[%clk 0:00:28.2]} 33...
Rxd7 {[%clk 0:00:15.9]} 34. Rxc5 {[%clk 0:00:28.5]} 34... Ne3 {[%clk 0:00:13.4]}
35. Rc8+ {[%clk 0:00:28.5]} 35... Ke7 {[%clk 0:00:12.3]} 36. Re8# {[%clk
0:00:29.2]} 1-0

[Event "Late-Titled-Tuesday-Blitz-March-26-2024"]
[Site "Chess.com"]
[Date "2024.03.26"]
[Round "3"]
[White "Romkachess"]
[Black "sergoy"]
[Result "0-1"]
[WhiteElo "2703"]
[BlackElo "2921"]
[TimeControl "180+1"]
[EndTime "14:29:24 PDT"]
[Termination "sergoy won by resignation"]

1. e4 {[%clk 0:03:00.9]} 1... c5 {[%clk 0:03:00.1]} 2. Nf3 {[%clk 0:02:58.7]}
2... d6 {[%clk 0:03:00.8]} 3. d4 {[%clk 0:02:58.7]} 3... cxd4 {[%clk 0:03:01.7]}
4. Nxd4 {[%clk 0:02:59.2]} 4... Nf6 {[%clk 0:03:02.4]} 5. Nc3 {[%clk 0:02:59.8]}
5... a6 {[%clk 0:03:03]} 6. h3 {[%clk 0:03:00.1]} 6... e5 {[%clk 0:03:02.9]} 7.
Nde2 {[%clk 0:02:59.4]} 7... h5 {[%clk 0:03:02.1]} 8. Bg5 {[%clk 0:03:00.1]}
8... Be6 {[%clk 0:03:01.3]} 9. Bxf6 {[%clk 0:03:00.7]} 9... Qxf6 {[%clk
0:03:02]} 10. Nd5 {[%clk 0:03:01.6]} 10... Qd8 {[%clk 0:03:02.4]} 11. Nec3
{[%clk 0:03:02.2]} 11... g6 {[%clk 0:03:00.8]} 12. Bc4 {[%clk 0:03:02.2]} 12...
Bh6 {[%clk 0:02:56.6]} 13. O-O {[%clk 0:02:59.2]} 13... Nc6 {[%clk 0:02:54.8]}
14. Qd3 {[%clk 0:02:58.7]} 14... O-O {[%clk 0:02:52.5]} 15. Rad1 {[%clk
0:02:57.6]} 15... Rc8 {[%clk 0:02:48.3]} 16. Bb3 {[%clk 0:02:55.9]} 16... Nd4
{[%clk 0:02:47.9]} 17. Ne2 {[%clk 0:02:56.5]} 17... Nxe2+ {[%clk 0:02:30.4]} 18.
Qxe2 {[%clk 0:02:55]} 18... Kg7 {[%clk 0:02:30.8]} 19. Nc3 {[%clk 0:01:34.8]}
19... Rc6 {[%clk 0:02:22.1]} 20. Bd5 {[%clk 0:01:33.4]} 20... Rc7 {[%clk
0:02:10.8]} 21. a4 {[%clk 0:01:33.6]} 21... Bf4 {[%clk 0:02:01.4]} 22. Rd3
{[%clk 0:01:32.9]} 22... Qe7 {[%clk 0:01:41.7]} 23. Rfd1 {[%clk 0:01:32.3]}
23... Rd8 {[%clk 0:01:42.2]} 24. Bb3 {[%clk 0:01:25.5]} 24... Rc5 {[%clk
0:01:33.9]} 25. Nd5 {[%clk 0:01:21.1]} 25... Bxd5 {[%clk 0:01:34.1]} 26. Bxd5
{[%clk 0:01:21.1]} 26... Rdc8 {[%clk 0:01:22.8]} 27. c3 {[%clk 0:01:15.9]} 27...
h4 {[%clk 0:01:17.9]} 28. c4 {[%clk 0:00:45.9]} 28... b6 {[%clk 0:01:03.5]} 29.
b4 {[%clk 0:00:44.6]} 29... R5c7 {[%clk 0:01:03.4]} 30. Qg4 {[%clk 0:00:43.1]}
30... a5 {[%clk 0:01:02.2]} 31. bxa5 {[%clk 0:00:41.2]} 31... bxa5 {[%clk
0:01:03.1]} 32. Rb3 {[%clk 0:00:41.1]} 32... Qf6 {[%clk 0:00:44.6]} 33. Rb5
{[%clk 0:00:40.2]} 33... Rc5 {[%clk 0:00:40.6]} 34. Rb7 {[%clk 0:00:40.5]} 34...
R8c7 {[%clk 0:00:39.8]} 35. Rxc7 {[%clk 0:00:27.6]} 35... Rxc7 {[%clk
0:00:40.7]} 36. Rb1 {[%clk 0:00:21.5]} 36... Bd2 {[%clk 0:00:39.7]} 37. Rb8
{[%clk 0:00:17.7]} 37... Bb4 {[%clk 0:00:37.8]} 38. Rc8 {[%clk 0:00:14]} 38...
Rxc8 {[%clk 0:00:35.6]} 39. Qxc8 {[%clk 0:00:14.9]} 39... Bc5 {[%clk 0:00:35.9]}
40. Qd7 {[%clk 0:00:14.8]} 40... Qxf2+ {[%clk 0:00:35.6]} 0-1

[Event "Late-Titled-Tuesday-Blitz-March-26-2024"]
[Site "Chess.com"]
[Date "2024.03.26"]
[Round "3"]
[White "tarno17"]
[Black "ExtremeLearner"]
[Result "0-1"]
[WhiteElo "2207"]
[BlackElo "2541"]
[TimeControl "180+1"]
[EndTime "14:29:26 PDT"]
[Termination "ExtremeLearner won on time"]

1. e4 {[%clk 0:03:00.9]} 1... c6 {[%clk 0:02:58.8]} 2. d4 {[%clk 0:03:00.4]}
2... d5 {[%clk 0:02:59.7]} 3. Nc3 {[%clk 0:03:00.7]} 3... dxe4 {[%clk
0:02:58.8]} 4. Nxe4 {[%clk 0:03:01.6]} 4... Nf6 {[%clk 0:02:57.7]} 5. Ng5 {[%clk
0:02:54.8]} 5... h6 {[%clk 0:02:51.5]} 6. Nxf7 {[%clk 0:02:47.2]} 6... Kxf7
{[%clk 0:02:47.6]} 7. Nf3 {[%clk 0:02:43.3]} 7... Nbd7 {[%clk 0:02:37]} 8. Bc4+
{[%clk 0:02:42.7]} 8... e6 {[%clk 0:02:35.4]} 9. O-O {[%clk 0:02:41]} 9... Bd6
{[%clk 0:02:23]} 10. Nh4 {[%clk 0:02:11.4]} 10... g5 {[%clk 0:02:00.6]} 11. Nf5
{[%clk 0:01:45.8]} 11... Nb6 {[%clk 0:01:53.4]} 12. Bb3 {[%clk 0:01:32.6]} 12...
Nbd5 {[%clk 0:01:45.1]} 13. Ng3 {[%clk 0:00:56.2]} 13... Bf4 {[%clk 0:01:09.8]}
14. c4 {[%clk 0:00:44.2]} 14... Bxc1 {[%clk 0:01:01.5]} 15. Rxc1 {[%clk
0:00:35]} 15... Nf4 {[%clk 0:00:59.4]} 16. Rc3 {[%clk 0:00:26.4]} 16... h5
{[%clk 0:00:55.8]} 17. Rf3 {[%clk 0:00:16.9]} 17... h4 {[%clk 0:00:52.3]} 18.
Ne2 {[%clk 0:00:12.8]} 18... Nxe2+ {[%clk 0:00:46.9]} 19. Qxe2 {[%clk
0:00:13.7]} 19... Qxd4 {[%clk 0:00:38.1]} 20. Rd1 {[%clk 0:00:13.5]} 20... Qc5
{[%clk 0:00:38.2]} 21. a3 {[%clk 0:00:04]} 21... a5 {[%clk 0:00:29]} 22. Qc2
{[%clk 0:00:02.6]} 22... g4 {[%clk 0:00:21.6]} 23. Rf4 {[%clk 0:00:02.6]} 23...
g3 {[%clk 0:00:21.6]} 24. hxg3 {[%clk 0:00:01.9]} 24... hxg3 {[%clk 0:00:21.8]}
25. Rf1 {[%clk 0:00:01.1]} 25... Rh1+ {[%clk 0:00:20.2]} 26. Kxh1 {[%clk
0:00:01.3]} 26... Qh5+ {[%clk 0:00:20.9]} 0-1

[Event "Late-Titled-Tuesday-Blitz-March-26-2024"]
[Site "Chess.com"]
[Date "2024.03.26"]
[Round "3"]
[White "vangulio"]
[Black "dasatcu90"]
[Result "1-0"]
[WhiteElo "2556"]
[BlackElo "2252"]
[TimeControl "180+1"]
[EndTime "14:29:29 PDT"]
[Termination "vangulio won on time"]

1. e4 {[%clk 0:03:00.9]} 1... c6 {[%clk 0:02:59.7]} 2. d4 {[%clk 0:03:00.4]}
2... d5 {[%clk 0:03:00.6]} 3. Nc3 {[%clk 0:03:01]} 3... dxe4 {[%clk 0:03:00.7]}
4. Nxe4 {[%clk 0:03:01.9]} 4... Nf6 {[%clk 0:03:01.2]} 5. Nxf6+ {[%clk
0:03:02.1]} 5... exf6 {[%clk 0:03:02.1]} 6. c3 {[%clk 0:03:02.9]} 6... Bd6
{[%clk 0:03:02]} 7. Bd3 {[%clk 0:03:03.5]} 7... O-O {[%clk 0:03:02.4]} 8. Ne2
{[%clk 0:03:03.9]} 8... Re8 {[%clk 0:03:03]} 9. O-O {[%clk 0:03:04.3]} 9... h5
{[%clk 0:03:02.7]} 10. Qc2 {[%clk 0:02:57.8]} 10... h4 {[%clk 0:03:00.4]} 11.
Bf4 {[%clk 0:02:54.8]} 11... Be6 {[%clk 0:02:48.7]} 12. Rae1 {[%clk 0:02:46]}
12... h3 {[%clk 0:02:33]} 13. g3 {[%clk 0:02:20.1]} 13... Na6 {[%clk 0:02:23.1]}
14. Bxd6 {[%clk 0:02:18]} 14... Qxd6 {[%clk 0:02:22.7]} 15. Nf4 {[%clk
0:02:18.7]} 15... Bd7 {[%clk 0:02:16.9]} 16. Bh7+ {[%clk 0:02:05.4]} 16... Kh8
{[%clk 0:01:33.8]} 17. Bf5 {[%clk 0:02:06.3]} 17... g6 {[%clk 0:01:21.4]} 18.
Bxh3 {[%clk 0:01:51.6]} 18... Kg7 {[%clk 0:01:21.2]} 19. Bg2 {[%clk 0:01:43]}
19... Nc7 {[%clk 0:01:18.4]} 20. Qd2 {[%clk 0:01:40.5]} 20... Rh8 {[%clk
0:01:11.5]} 21. Nd3 {[%clk 0:01:27.5]} 21... Bh3 {[%clk 0:00:58.8]} 22. Qf4
{[%clk 0:01:26.1]} 22... Qd7 {[%clk 0:00:54.2]} 23. Bxh3 {[%clk 0:01:05.5]}
23... Qxh3 {[%clk 0:00:55.1]} 24. g4 {[%clk 0:01:06]} 24... Qxd3 {[%clk
0:00:47.7]} 25. Qxc7 {[%clk 0:01:03.4]} 25... Rh4 {[%clk 0:00:32.1]} 26. f3
{[%clk 0:00:55.3]} 26... Qd2 {[%clk 0:00:20.9]} 27. Re7 {[%clk 0:00:51.2]} 27...
Rf8 {[%clk 0:00:20.9]} 28. Rf2 {[%clk 0:00:32.7]} 28... Qc1+ {[%clk 0:00:15.1]}
29. Kg2 {[%clk 0:00:32.6]} 29... Qh6 {[%clk 0:00:12.3]} 30. Rfe2 {[%clk
0:00:28.1]} 30... g5 {[%clk 0:00:02.9]} 31. Re8 {[%clk 0:00:23]} 31... Rxe8
{[%clk 0:00:01.4]} 32. Rxe8 {[%clk 0:00:23.9]} 1-0

[Event "Late-Titled-Tuesday-Blitz-March-26-2024"]
[Site "Chess.com"]
[Date "2024.03.26"]
[Round "3"]
[White "AntonovaNadezhda"]
[Black "ccccvhhhj"]
[Result "0-1"]
[WhiteElo "2203"]
[BlackElo "2458"]
[TimeControl "180+1"]
[EndTime "14:29:29 PDT"]
[Termination "ccccvhhhj won on time"]

1. Nf3 {[%clk 0:02:40.2]} 1... e6 {[%clk 0:02:57.8]} 2. b3 {[%clk 0:02:40.2]}
2... f5 {[%clk 0:02:57.5]} 3. Bb2 {[%clk 0:02:40.2]} 3... Nf6 {[%clk 0:02:58.4]}
4. g3 {[%clk 0:02:40.7]} 4... Be7 {[%clk 0:02:58.5]} 5. Bg2 {[%clk 0:02:40.4]}
5... d6 {[%clk 0:02:59.2]} 6. O-O {[%clk 0:02:41]} 6... O-O {[%clk 0:02:59.9]}
7. d4 {[%clk 0:02:41]} 7... Qe8 {[%clk 0:02:59.1]} 8. c4 {[%clk 0:02:40]} 8...
Nbd7 {[%clk 0:02:55.4]} 9. Nc3 {[%clk 0:02:38]} 9... Ne4 {[%clk 0:02:55.2]} 10.
Qc2 {[%clk 0:02:37.1]} 10... Ndf6 {[%clk 0:02:54.8]} 11. Nxe4 {[%clk 0:02:28.7]}
11... fxe4 {[%clk 0:02:50.5]} 12. Ne1 {[%clk 0:02:23.8]} 12... Qg6 {[%clk
0:02:43.4]} 13. f3 {[%clk 0:02:17]} 13... d5 {[%clk 0:02:28.5]} 14. Rc1 {[%clk
0:01:34.8]} 14... c6 {[%clk 0:02:26.8]} 15. a3 {[%clk 0:01:17.3]} 15... a5
{[%clk 0:02:26.2]} 16. Qd2 {[%clk 0:01:16.5]} 16... exf3 {[%clk 0:02:23.6]} 17.
Nxf3 {[%clk 0:01:10.6]} 17... Ne4 {[%clk 0:02:23.8]} 18. Qc2 {[%clk 0:01:07]}
18... Bf6 {[%clk 0:02:21]} 19. Ne5 {[%clk 0:00:51.9]} 19... Bxe5 {[%clk
0:02:20.6]} 20. Rxf8+ {[%clk 0:00:51]} 20... Kxf8 {[%clk 0:02:21.5]} 21. dxe5
{[%clk 0:00:50.9]} 21... Bd7 {[%clk 0:02:20.3]} 22. Bxe4 {[%clk 0:00:44.6]}
22... dxe4 {[%clk 0:02:21.2]} 23. Qd2 {[%clk 0:00:38.3]} 23... Be8 {[%clk
0:02:18]} 24. Qd6+ {[%clk 0:00:31]} 24... Kg8 {[%clk 0:02:16.9]} 25. Rf1 {[%clk
0:00:31.3]} 25... Bf7 {[%clk 0:02:15.7]} 26. Bd4 {[%clk 0:00:22.6]} 26... h5
{[%clk 0:02:09.9]} 27. Kg2 {[%clk 0:00:09.4]} 27... h4 {[%clk 0:02:09.7]} 28.
Bc5 {[%clk 0:00:08.5]} 28... Qg4 {[%clk 0:02:07.4]} 29. Rf2 {[%clk 0:00:07.6]}
29... e3 {[%clk 0:02:06.2]} 30. Bxe3 {[%clk 0:00:07.1]} 30... Qe4+ {[%clk
0:02:06.2]} 31. Rf3 {[%clk 0:00:07.6]} 31... Rf8 {[%clk 0:02:01.8]} 32. Qd4
{[%clk 0:00:07.4]} 32... Qc2 {[%clk 0:02:00.6]} 33. Qxh4 {[%clk 0:00:05.9]}
33... Qxe2+ {[%clk 0:02:00]} 34. Bf2 {[%clk 0:00:06.1]} 34... Qxe5 {[%clk
0:01:56.9]} 35. Qf4 {[%clk 0:00:05.7]} 35... Qh5 {[%clk 0:01:54.5]} 36. Re3
{[%clk 0:00:05]} 36... Re8 {[%clk 0:01:49.2]} 37. Qe5 {[%clk 0:00:05.3]} 37...
Qg6 {[%clk 0:01:47.8]} 38. Re4 {[%clk 0:00:04.7]} 38... Qh7 {[%clk 0:01:45.2]}
39. Bd4 {[%clk 0:00:04.8]} 39... Bg6 {[%clk 0:01:44.9]} 40. Rh4 {[%clk
0:00:04.6]} 40... Be4+ {[%clk 0:01:40.3]} 41. Qxe4 {[%clk 0:00:03.2]} 41...
Qxe4+ {[%clk 0:01:40.6]} 42. Rxe4 {[%clk 0:00:03.2]} 42... Kf7 {[%clk
0:01:41.5]} 43. Re5 {[%clk 0:00:03.6]} 43... Rd8 {[%clk 0:01:41.9]} 44. Rxa5
{[%clk 0:00:04.2]} 44... Rxd4 {[%clk 0:01:42]} 45. Ra7 {[%clk 0:00:05.1]} 45...
Rd2+ {[%clk 0:01:42.2]} 46. Kh3 {[%clk 0:00:06]} 46... Rd7 {[%clk 0:01:40.2]}
47. b4 {[%clk 0:00:06.2]} 47... Kf6 {[%clk 0:01:40.7]} 48. c5 {[%clk 0:00:06.5]}
48... Ke5 {[%clk 0:01:40.7]} 49. Kg4 {[%clk 0:00:06.8]} 49... Kd5 {[%clk
0:01:41.1]} 50. Kg5 {[%clk 0:00:06.6]} 50... e5 {[%clk 0:01:40.7]} 51. Kf5
{[%clk 0:00:06.5]} 51... Rf7+ {[%clk 0:01:39.8]} 52. Kg4 {[%clk 0:00:06.8]}
52... e4 {[%clk 0:01:39.9]} 53. Ra8 {[%clk 0:00:07.2]} 53... Re7 {[%clk
0:01:38]} 54. Kf4 {[%clk 0:00:07]} 54... Kc4 {[%clk 0:01:37.8]} 55. Rd8 {[%clk
0:00:06.5]} 55... e3 {[%clk 0:01:38]} 56. Rd1 {[%clk 0:00:07]} 56... e2 {[%clk
0:01:38.2]} 57. Re1 {[%clk 0:00:07.5]} 57... Kd3 {[%clk 0:01:38.9]} 58. Kf3
{[%clk 0:00:08.1]} 58... Kd2 {[%clk 0:01:39.6]} 0-1

[Event "Late-Titled-Tuesday-Blitz-March-26-2024"]
[Site "Chess.com"]
[Date "2024.03.26"]
[Round "3"]
[White "Budisavljevic"]
[Black "Sanan_Sjugirov"]
[Result "1-0"]
[WhiteElo "2788"]
[BlackElo "2999"]
[TimeControl "180+1"]
[EndTime "14:29:31 PDT"]
[Termination "Budisavljevic won on time"]

1. d4 {[%clk 0:03:00.9]} 1... Nf6 {[%clk 0:02:59.8]} 2. c4 {[%clk 0:03:00.1]}
2... g6 {[%clk 0:02:58.6]} 3. h4 {[%clk 0:02:59.9]} 3... c5 {[%clk 0:02:54]} 4.
d5 {[%clk 0:02:59.6]} 4... b5 {[%clk 0:02:52]} 5. cxb5 {[%clk 0:03:00.5]} 5...
a6 {[%clk 0:02:52.1]} 6. e3 {[%clk 0:03:00.5]} 6... axb5 {[%clk 0:02:44.4]} 7.
Bxb5 {[%clk 0:03:01.4]} 7... Qa5+ {[%clk 0:02:37.8]} 8. Nc3 {[%clk 0:03:00.5]}
8... Bb7 {[%clk 0:02:38.2]} 9. Bd2 {[%clk 0:02:55]} 9... Qb6 {[%clk 0:02:36.2]}
10. a4 {[%clk 0:02:44.3]} 10... Bg7 {[%clk 0:02:34]} 11. e4 {[%clk 0:02:43.2]}
11... O-O {[%clk 0:02:32.1]} 12. Nf3 {[%clk 0:02:32.1]} 12... e6 {[%clk
0:02:28.5]} 13. O-O {[%clk 0:02:02.2]} 13... exd5 {[%clk 0:02:25.2]} 14. exd5
{[%clk 0:02:03.1]} 14... Na6 {[%clk 0:02:04.3]} 15. Be3 {[%clk 0:01:56]} 15...
Nb4 {[%clk 0:02:01.5]} 16. Ne5 {[%clk 0:01:50.2]} 16... d6 {[%clk 0:01:48.3]}
17. Nd7 {[%clk 0:01:28.7]} 17... Nxd7 {[%clk 0:01:47.8]} 18. Bxd7 {[%clk
0:01:29.6]} 18... Ba6 {[%clk 0:01:38.5]} 19. Bb5 {[%clk 0:01:26.9]} 19... Bxb5
{[%clk 0:01:22.3]} 20. axb5 {[%clk 0:01:27.8]} 20... Rxa1 {[%clk 0:01:20.4]} 21.
Qxa1 {[%clk 0:01:28.7]} 21... Qb7 {[%clk 0:01:20.6]} 22. Qd1 {[%clk 0:01:19.7]}
22... Re8 {[%clk 0:00:56.3]} 23. h5 {[%clk 0:01:16.2]} 23... Bxc3 {[%clk
0:00:14.6]} 24. bxc3 {[%clk 0:01:17.1]} 24... Nxd5 {[%clk 0:00:15.2]} 25. Bh6
{[%clk 0:01:12.2]} 25... Nxc3 {[%clk 0:00:12.7]} 26. Qxd6 {[%clk 0:01:03.1]}
26... Ne2+ {[%clk 0:00:03.7]} 27. Kh1 {[%clk 0:01:02.3]} 27... Qe4 {[%clk
0:00:03.9]} 28. hxg6 {[%clk 0:00:35.7]} 28... Qh4+ {[%clk 0:00:03.1]} 29. Qh2
{[%clk 0:00:35.9]} 29... Qxh2+ {[%clk 0:00:03]} 30. Kxh2 {[%clk 0:00:36.8]}
30... hxg6 {[%clk 0:00:03.6]} 31. Re1 {[%clk 0:00:35.1]} 31... Re6 {[%clk
0:00:02.9]} 32. b6 {[%clk 0:00:33.1]} 32... Nd4 {[%clk 0:00:01.9]} 33. Rxe6
{[%clk 0:00:31.5]} 33... fxe6 {[%clk 0:00:02.8]} 34. b7 {[%clk 0:00:31.8]} 34...
Nc6 {[%clk 0:00:03.4]} 35. Bf4 {[%clk 0:00:32.1]} 1-0

[Event "Late-Titled-Tuesday-Blitz-March-26-2024"]
[Site "Chess.com"]
[Date "2024.03.26"]
[Round "3"]
[White "HanSchut"]
[Black "Good_Knight_Kiss"]
[Result "0-1"]
[WhiteElo "2274"]
[BlackElo "2510"]
[TimeControl "180+1"]
[EndTime "14:29:31 PDT"]
[Termination "Good_Knight_Kiss won on time"]

1. e4 {[%clk 0:02:48.5]} 1... c5 {[%clk 0:02:59.5]} 2. Nf3 {[%clk 0:02:48.7]}
2... d6 {[%clk 0:02:59.6]} 3. d4 {[%clk 0:02:48.8]} 3... cxd4 {[%clk 0:03:00.5]}
4. Nxd4 {[%clk 0:02:49.5]} 4... Nf6 {[%clk 0:03:00.2]} 5. f3 {[%clk 0:02:50.2]}
5... e5 {[%clk 0:02:59.6]} 6. Bb5+ {[%clk 0:02:50.1]} 6... Nbd7 {[%clk 0:02:59]}
7. Nf5 {[%clk 0:02:50]} 7... d5 {[%clk 0:02:57.2]} 8. exd5 {[%clk 0:02:50.9]}
8... a6 {[%clk 0:02:57.3]} 9. Ba4 {[%clk 0:02:51.2]} 9... b5 {[%clk 0:02:57]}
10. Bb3 {[%clk 0:02:50.9]} 10... Nc5 {[%clk 0:02:55.9]} 11. Ne3 {[%clk
0:02:51.5]} 11... Nh5 {[%clk 0:02:42.6]} 12. O-O {[%clk 0:02:42.1]} 12... f5
{[%clk 0:02:34.9]} 13. d6 {[%clk 0:01:57.3]} 13... Nxb3 {[%clk 0:02:32.7]} 14.
axb3 {[%clk 0:01:54.9]} 14... Bxd6 {[%clk 0:02:20.2]} 15. Qd5 {[%clk 0:01:36.9]}
15... Rb8 {[%clk 0:01:08.4]} 16. Rd1 {[%clk 0:01:34]} 16... Bc7 {[%clk
0:01:01.3]} 17. Rxa6 {[%clk 0:00:19.1]} 17... Nf4 {[%clk 0:00:23.7]} 18. Qc6+
{[%clk 0:00:09.8]} 18... Bd7 {[%clk 0:00:23.2]} 19. Qc5 {[%clk 0:00:09]} 19...
Ne2+ {[%clk 0:00:11.3]} 20. Kh1 {[%clk 0:00:06.1]} 20... Nxc1 {[%clk 0:00:11]}
21. Nd5 {[%clk 0:00:03.8]} 21... Rc8 {[%clk 0:00:08.1]} 22. Ra7 {[%clk
0:00:01.6]} 22... Bb8 {[%clk 0:00:07]} 23. Rxd7 {[%clk 0:00:01]} 23... Qxd7
{[%clk 0:00:03.5]} 0-1

[Event "Late-Titled-Tuesday-Blitz-March-26-2024"]
[Site "Chess.com"]
[Date "2024.03.26"]
[Round "3"]
[White "NovakCabarkapa"]
[Black "MITerryble"]
[Result "0-1"]
[WhiteElo "2751"]
[BlackElo "2998"]
[TimeControl "180+1"]
[EndTime "14:29:32 PDT"]
[Termination "MITerryble won by resignation"]

1. d4 {[%clk 0:03:00.9]} 1... Nf6 {[%clk 0:02:59.8]} 2. Nc3 {[%clk 0:03:01.2]}
2... e6 {[%clk 0:02:57.5]} 3. e4 {[%clk 0:03:00.6]} 3... d5 {[%clk 0:02:57.5]}
4. e5 {[%clk 0:03:01.1]} 4... Nfd7 {[%clk 0:02:57.9]} 5. Qg4 {[%clk 0:03:01.7]}
5... h5 {[%clk 0:02:50.4]} 6. Qg3 {[%clk 0:02:59.3]} 6... c6 {[%clk 0:01:54.1]}
7. Bg5 {[%clk 0:02:49.1]} 7... Qa5 {[%clk 0:01:52.5]} 8. O-O-O {[%clk
0:02:04.8]} 8... b5 {[%clk 0:01:52.1]} 9. Bd3 {[%clk 0:02:01.2]} 9... b4 {[%clk
0:01:50.1]} 10. Nb1 {[%clk 0:02:00.3]} 10... Qxa2 {[%clk 0:01:50.4]} 11. Bh4
{[%clk 0:01:25.9]} 11... g6 {[%clk 0:01:16.1]} 12. f4 {[%clk 0:01:08.9]} 12...
Bh6 {[%clk 0:01:00.1]} 13. Nf3 {[%clk 0:01:08.7]} 13... Ba6 {[%clk 0:00:49.2]}
14. Bxg6 {[%clk 0:01:03.1]} 14... Rg8 {[%clk 0:00:47.6]} 15. Bxf7+ {[%clk
0:01:02]} 15... Kxf7 {[%clk 0:00:48.5]} 16. Ng5+ {[%clk 0:00:59.7]} 16... Bxg5
{[%clk 0:00:47.9]} 17. Bxg5 {[%clk 0:00:41.4]} 17... Nb6 {[%clk 0:00:37.5]} 18.
b3 {[%clk 0:00:24.1]} 18... Nc4 {[%clk 0:00:32.3]} 19. bxc4 {[%clk 0:00:23.3]}
19... dxc4 {[%clk 0:00:33.2]} 20. c3 {[%clk 0:00:13.7]} 20... bxc3 {[%clk
0:00:18.5]} 21. Qxc3 {[%clk 0:00:14.6]} 21... Nd7 {[%clk 0:00:17.6]} 22. d5
{[%clk 0:00:14.3]} 22... cxd5 {[%clk 0:00:17.5]} 23. f5 {[%clk 0:00:13.8]} 23...
Nc5 {[%clk 0:00:10.7]} 24. fxe6+ {[%clk 0:00:13.9]} 24... Ke8 {[%clk 0:00:11.2]}
25. Rxd5 {[%clk 0:00:11.5]} 25... Nb3+ {[%clk 0:00:09.4]} 26. Kd1 {[%clk
0:00:12]} 26... Qxb1+ {[%clk 0:00:09.9]} 27. Ke2 {[%clk 0:00:12.5]} 27... Qe4+
{[%clk 0:00:10.6]} 28. Kf2 {[%clk 0:00:09]} 28... Qxd5 {[%clk 0:00:10.9]} 29.
Bf6 {[%clk 0:00:08.1]} 29... Qd4+ {[%clk 0:00:11.2]} 30. Qxd4 {[%clk 0:00:08.1]}
30... Nxd4 {[%clk 0:00:12.1]} 31. Ra1 {[%clk 0:00:08]} 0-1